[Event "Torneo Benidorm Gran Hotel Bali 2022"]
[Site "Benidorm, Spain"]
[Date "2022.12.10"]
[Round "9.3"]
[White "Luque Saiz, Andres"]
[Black "Md, Imran"]
[Result "1-0"]
[ECO "B38"]
[WhiteElo "2286"]
[BlackElo "2279"]
[PlyCount "65"]
[EventDate "2022.12.03"]
[EventType "swiss"]
[EventRounds "9"]
[SourceTitle "Ajedrez en Madrid"]
[Source "lmi"]
[SourceDate "2022.12.03"]
[SourceVersion "1"]
[SourceVersionDate "2022.12.10"]
[SourceQuality "1"]
[TimeControl "90+30"]
[WhiteClock "0:13:46"]
[BlackClock "0:33:40"]

1. e4 {[%emt 0:00:00]} c5 {[%emt 0:00:00]} 2. Nf3 {[%emt 0:00:00]} Nc6 {[%emt 0:00:00]} 3. d4 {[%emt 0:00:00]} cxd4 {[%emt 0:00:00]} 4. Nxd4 {[%emt 0:00:00]} g6 {[%emt 0:00:00]} 5. c4 {[%emt 0:00:00]} Bg7 {[%emt 0:00:00]} 6. Be3 {[%emt 0:00:00]} Qb6 {[%emt 0:00:00]} 7. Nb3 {[%emt 0:00:00]} Qc7 {[%emt 0:00:00]} 8. Nc3 {[%emt 0:00:00]} Bxc3+ {[%emt 0:00:00]} 9. bxc3 {[%emt 0:00:00]} Nf6 {[%emt 0:00:00]} 10. f3 {[%emt 0:00:00]} O-O {[%emt 0:00:00]} 11. Be2 {[%emt 0:00:00]} d6 {[%emt 0:00:00]} 12. O-O {[%emt 0:00:00]} b6 {[%emt 0:00:00]} 13. a4 {[%emt 0:00:00]} Ne5 {[%emt 0:00:00]} 14. Nd2 {[%emt 0:00:00]} Be6 {[%emt 0:00:00]} 15. Bd4 {[%emt 0:00:00]} Nxc4 {[%emt 0:00:00]} 16. Rf2 {[%emt 0:00:00]} Nd7 {[%emt 0:00:00]} 17. f4 {[%emt 0:00:00]} Nxd2 {[%emt 0:00:00]} 18. Qxd2 {[%emt 0:00:00]} Bc4 {[%emt 0:00:00]} 19. f5 {[%emt 0:00:00]} e5 {[%emt 0:00:00]} 20. Be3 {[%emt 0:00:00]} Nf6 {[%emt 0:00:00]} 21. Bf3 {[%emt 0:00:00]} d5 {[%emt 0:00:00]} 22. exd5 {[%emt 0:00:00]} Qd6 {[%emt 0:00:00]} 23. Bg5 {[%emt 0:00:00]} Nd7 {[%emt 0:00:00]} 24. Be4 {[%emt 0:00:00]} Nc5 {[%emt 0:00:00]} 25. Qe3 {[%emt 0:00:05]} Nxe4 {[%emt 0:00:00]} 26. Qxe4 {[%emt 0:00:09]} Qxd5 {[%emt 0:00:00]} 27. Qh4 {[%emt 0:00:35]} e4 {[%emt 0:00:00]} 28. Qh6 {[%emt 0:01:08]} f6 {[%emt 0:00:00]} 29. fxg6 {[%emt 0:00:17]} Qd7 {[%emt 0:00:00]} 30. Bxf6 {[%emt 0:00:56]} e3 {[%emt 0:00:00]} 31. gxh7+ {[%emt 0:00:47]} Qxh7 {[%emt 0:00:00]} 32. Qg5+ {[%emt 0:00:12]} Kf7 {[%emt 0:00:00]} 33. Qxe3 {[%emt 0:00:05]} 1-0

[Event "Torneo Benidorm Gran Hotel Bali 2022"]
[Site "Benidorm, Spain"]
[Date "2022.12.10"]
[Round "9.4"]
[White "Pallardo Lozoya, Jose Vicente"]
[Black "Aguilera Lopez, Alejandro"]
[Result "1/2-1/2"]
[ECO "B45"]
[WhiteElo "2367"]
[BlackElo "2184"]
[PlyCount "56"]
[EventDate "2022.12.03"]
[EventType "swiss"]
[EventRounds "9"]
[SourceTitle "Ajedrez en Madrid"]
[Source "lmi"]
[SourceDate "2022.12.03"]
[SourceVersion "1"]
[SourceVersionDate "2022.12.10"]
[SourceQuality "1"]
[TimeControl "90+30"]
[WhiteClock "0:38:46"]
[BlackClock "1:04:32"]

1. e4 {[%emt 0:00:00]} c5 {[%emt 0:00:00]} 2. Nf3 {[%emt 0:00:00]} e6 {[%emt 0:00:00]} 3. d4 {[%emt 0:00:00]} cxd4 {[%emt 0:00:00]} 4. Nxd4 {[%emt 0:00:00]} Nf6 {[%emt 0:00:00]} 5. Nc3 {[%emt 0:00:00]} Nc6 {[%emt 0:00:00]} 6. Ndb5 {[%emt 0:00:00]} Bb4 {[%emt 0:00:00]} 7. a3 {[%emt 0:00:00]} Bxc3+ {[%emt 0:00:00]} 8. Nxc3 {[%emt 0:00:00]} d5 {[%emt 0:00:00]} 9. exd5 {[%emt 0:00:00]} exd5 {[%emt 0:00:00]} 10. Bd3 {[%emt 0:00:00]} O-O {[%emt 0:00:00]} 11. O-O {[%emt 0:00:00]} Bg4 {[%emt 0:00:00]} 12. f3 {[%emt 0:00:00]} Bh5 {[%emt 0:00:00]} 13. Bg5 {[%emt 0:00:00]} Qb6+ {[%emt 0:00:00]} 14. Kh1 {[%emt 0:00:00]} Ne4 {[%emt 0:00:00]} 15. Nxe4 {[%emt 0:00:00]} dxe4 {[%emt 0:00:00]} 16. Bxe4 {[%emt 0:00:00]} Qxb2 {[%emt 0:00:00]} 17. Rb1 {[%emt 0:00:00]} Qxa3 {[%emt 0:00:00]} 18. Rxb7 {[%emt 0:00:00]} Qa6 {[%emt 0:00:00]} 19. Rb1 {[%emt 0:00:00]} Bg6 {[%emt 0:00:00]} 20. Bd5 {[%emt 0:00:00]} Rac8 {[%emt 0:00:00]} 21. Qd2 {[%emt 0:00:00]} Qa5 {[%emt 0:00:00]} 22. Qxa5 {[%emt 0:00:00]} Nxa5 {[%emt 0:00:00]} 23. Rb5 {[%emt 0:00:00]} Nc4 {[%emt 0:00:00]} 24. Ra1 {[%emt 0:00:00]} Nb6 {[%emt 0:00:00]} 25. Rxa7 {[%emt 0:00:00]} Nxd5 {[%emt 0:00:00]} 26. Rxd5 {[%emt 0:00:00]} Rxc2 {[%emt 0:00:00]} 27. h4 {[%emt 0:00:00]} h5 {[%emt 0:00:00]} 28. Kh2 {[%emt 0:00:00]} Re8 {[%emt 0:00:00]} 1/2-1/2

[Event "Torneo Benidorm Gran Hotel Bali 2022"]
[Site "Benidorm, Spain"]
[Date "2022.12.10"]
[Round "9.5"]
[White "Gomez Carreno, Martin"]
[Black "Sos Andreu, Eric"]
[Result "1/2-1/2"]
[ECO "B12"]
[WhiteElo "2179"]
[BlackElo "2364"]
[PlyCount "91"]
[EventDate "2022.12.03"]
[EventType "swiss"]
[EventRounds "9"]
[SourceTitle "Ajedrez en Madrid"]
[Source "lmi"]
[SourceDate "2022.12.03"]
[SourceVersion "1"]
[SourceVersionDate "2022.12.10"]
[SourceQuality "1"]
[TimeControl "90+30"]
[WhiteClock "0:18:43"]
[BlackClock "0:42:14"]

1. e4 {[%emt 0:00:00]} c6 {[%emt 0:00:00]} 2. d4 {[%emt 0:00:00]} d5 {[%emt 0:00:00]} 3. e5 {[%emt 0:00:00]} Bf5 {[%emt 0:00:00]} 4. h4 {[%emt 0:00:00]} h5 {[%emt 0:00:00]} 5. c4 {[%emt 0:00:00]} e6 {[%emt 0:00:00]} 6. Nc3 {[%emt 0:00:00]} dxc4 {[%emt 0:00:00]} 7. Bxc4 {[%emt 0:00:00]} Nd7 {[%emt 0:00:00]} 8. Bg5 {[%emt 0:00:00]} Be7 {[%emt 0:00:00]} 9. Bxe7 {[%emt 0:00:00]} Nxe7 {[%emt 0:00:00]} 10. Nge2 {[%emt 0:00:00]} Qb6 {[%emt 0:00:00]} 11. Qb3 {[%emt 0:00:00]} Rd8 {[%emt 0:00:00]} 12. Rd1 {[%emt 0:00:00]} Qxb3 {[%emt 0:00:00]} 13. Bxb3 {[%emt 0:00:00]} O-O {[%emt 0:00:00]} 14. Ng3 {[%emt 0:00:00]} Bg6 {[%emt 0:00:00]} 15. O-O {[%emt 0:00:00]} Nb6 {[%emt 0:00:00]} 16. Rd2 {[%emt 0:00:00]} Nf5 {[%emt 0:00:00]} 17. Nxf5 {[%emt 0:00:00]} Bxf5 {[%emt 0:00:00]} 18. Rfd1 {[%emt 0:00:00]} Rd7 {[%emt 0:00:00]} 19. f3 {[%emt 0:00:00]} Rfd8 {[%emt 0:00:00]} 20. Kf2 {[%emt 0:00:00]} Rc7 {[%emt 0:00:00]} 21. Ke3 {[%emt 0:00:00]} a6 {[%emt 0:00:00]} 22. Ne4 {[%emt 0:00:00]} Kf8 {[%emt 0:00:00]} 23. Nd6 {[%emt 0:00:00]} Bg6 {[%emt 0:00:00]} 24. Rc1 {[%emt 0:00:00]} Nc8 {[%emt 0:00:00]} 25. Nxc8 {[%emt 0:00:00]} Rdxc8 {[%emt 0:00:00]} 26. f4 {[%emt 0:00:00]} Ke7 {[%emt 0:00:00]} 27. a3 {[%emt 0:00:00]} Bf5 {[%emt 0:00:00]} 28. Bd1 {[%emt 0:00:00]} g6 {[%emt 0:00:00]} 29. Bf3 {[%emt 0:00:00]} Rd7 {[%emt 0:00:00]} 30. Rc5 {[%emt 0:00:00]} Kd8 {[%emt 0:00:00]} 31. a4 {[%emt 0:00:00]} Kc7 {[%emt 0:00:00]} 32. a5 {[%emt 0:00:00]} Rcd8 {[%emt 0:00:00]} 33. b4 {[%emt 0:00:00]} Kb8 {[%emt 0:00:00]} 34. Rc1 {[%emt 0:00:00]} Ka7 {[%emt 0:00:00]} 35. Rc3 {[%emt 0:00:00]} Rc8 {[%emt 0:00:00]} 36. Ra2 {[%emt 0:00:26]} Rh8 {[%emt 0:00:00]} 37. Rc1 {[%emt 0:01:33]} Kb8 {[%emt 0:00:00]} 38. Rb2 {[%emt 0:00:48]} Rdd8 {[%emt 0:00:00]} 39. g3 {[%emt 0:01:24]} Rd7 {[%emt 0:00:00]} 40. Bg2 {[%emt 0:00:15]} Rhd8 {[%emt 0:00:00]} 41. Rd2 {[%emt 0:00:05]} Ka7 {[%emt 0:00:00]} 42. Bf3 {[%emt 0:00:31]} Bh3 {[%emt 0:00:00]} 43. Be4 {[%emt 0:00:30]} Bf5 {[%emt 0:00:00]} 44. Bf3 {[%emt 0:00:08]} Bh3 {[%emt 0:00:00]} 45. Be4 {[%emt 0:00:04]} Bf5 {[%emt 0:00:00]} 46. Bf3 {[%emt 0:00:03]} 1/2-1/2

[Event "Torneo Benidorm Gran Hotel Bali 2022"]
[Site "Benidorm, Spain"]
[Date "2022.12.10"]
[Round "9.6"]
[White "Centeno Mendoza, Julio Stefano"]
[Black "Mingarro Carceller, Sergi"]
[Result "0-1"]
[ECO "B22"]
[WhiteElo "2099"]
[BlackElo "2330"]
[PlyCount "102"]
[EventDate "2022.12.03"]
[EventType "swiss"]
[EventRounds "9"]
[SourceTitle "Ajedrez en Madrid"]
[Source "lmi"]
[SourceDate "2022.12.03"]
[SourceVersion "1"]
[SourceVersionDate "2022.12.10"]
[SourceQuality "1"]
[TimeControl "90+30"]
[WhiteClock "0:15:07"]
[BlackClock "0:15:57"]

1. e4 {[%emt 0:00:00]} c5 {[%emt 0:00:00]} 2. c3 {[%emt 0:00:00]} Nf6 {[%emt 0:00:00]} 3. e5 {[%emt 0:00:00]} Nd5 {[%emt 0:00:00]} 4. Bc4 {[%emt 0:00:00]} Nb6 {[%emt 0:00:00]} 5. Bb3 {[%emt 0:00:00]} c4 {[%emt 0:00:00]} 6. Bc2 {[%emt 0:00:00]} g6 {[%emt 0:00:00]} 7. Nf3 {[%emt 0:00:00]} Bg7 {[%emt 0:00:00]} 8. O-O {[%emt 0:00:00]} Nc6 {[%emt 0:00:00]} 9. Re1 {[%emt 0:00:00]} d6 {[%emt 0:00:00]} 10. exd6 {[%emt 0:00:00]} Qxd6 {[%emt 0:00:00]} 11. h3 {[%emt 0:00:00]} O-O {[%emt 0:00:00]} 12. b3 {[%emt 0:00:00]} Be6 {[%emt 0:00:00]} 13. Na3 {[%emt 0:00:00]} Nb4 {[%emt 0:00:00]} 14. Nb5 {[%emt 0:00:00]} Qd7 {[%emt 0:00:00]} 15. Nbd4 {[%emt 0:00:00]} Nxc2 {[%emt 0:00:00]} 16. Qxc2 {[%emt 0:00:00]} Bd5 {[%emt 0:00:00]} 17. Ba3 {[%emt 0:00:00]} Rfe8 {[%emt 0:00:00]} 18. Ne5 {[%emt 0:00:00]} Qc7 {[%emt 0:00:00]} 19. Nxc4 {[%emt 0:00:00]} Nxc4 {[%emt 0:00:00]} 20. bxc4 {[%emt 0:00:00]} Bxc4 {[%emt 0:00:00]} 21. Nb3 {[%emt 0:00:00]} Rad8 {[%emt 0:00:00]} 22. d4 {[%emt 0:00:00]} Rc8 {[%emt 0:00:00]} 23. Rac1 {[%emt 0:00:00]} Bd5 {[%emt 0:00:00]} 24. Qd2 {[%emt 0:00:00]} b6 {[%emt 0:00:00]} 25. Qg5 {[%emt 0:00:00]} e6 {[%emt 0:00:00]} 26. Qd2 {[%emt 0:00:00]} Red8 {[%emt 0:00:00]} 27. Qe3 {[%emt 0:00:00]} Rd7 {[%emt 0:00:00]} 28. Bb2 {[%emt 0:00:00]} Qc6 {[%emt 0:00:00]} 29. Nd2 {[%emt 0:00:00]} Qb5 {[%emt 0:00:00]} 30. c4 {[%emt 0:00:00]} Qxb2 {[%emt 0:00:00]} 31. Rb1 {[%emt 0:00:00]} Qxd4 {[%emt 0:00:00]} 32. cxd5 {[%emt 0:00:00]} Qxe3 {[%emt 0:00:00]} 33. Rxe3 {[%emt 0:00:00]} Rxd5 {[%emt 0:00:00]} 34. Ne4 {[%emt 0:00:00]} Rc2 {[%emt 0:00:00]} 35. a3 {[%emt 0:00:00]} Bd4 {[%emt 0:00:00]} 36. Rf3 {[%emt 0:00:09]} Kg7 {[%emt 0:00:00]} 37. Kf1 {[%emt 0:01:27]} h6 {[%emt 0:00:00]} 38. Rd1 {[%emt 0:00:17]} f5 {[%emt 0:00:00]} 39. Ng3 {[%emt 0:00:06]} Bc5 {[%emt 0:00:12]} 40. Re1 {[%emt 0:01:47]} e5 {[%emt 0:01:15]} 41. Ne2 {[%emt 0:00:18]} Rdd2 {[%emt 0:01:12]} 42. Rb3 {[%emt 0:02:00]} Ra2 {[%emt 0:00:49]} 43. g3 {[%emt 0:00:10]} Bxa3 {[%emt 0:00:43]} 44. Re3 {[%emt 0:01:50]} Kf6 {[%emt 0:02:22]} 45. g4 {[%emt 0:01:22]} Bc5 {[%emt 0:00:45]} 46. Rb3 {[%emt 0:00:12]} f4 {[%emt 0:00:41]} 47. h4 {[%emt 0:00:27]} a5 {[%emt 0:00:41]} 48. f3 {[%emt 0:00:18]} Rac2 {[%emt 0:00:40]} 49. h5 {[%emt 0:01:12]} gxh5 {[%emt 0:00:31]} 50. gxh5 {[%emt 0:00:04]} a4 {[%emt 0:00:17]} 51. Rb5 {[%emt 0:00:14]} a3 {[%emt 0:00:55]} 0-1

[Event "Torneo Benidorm Gran Hotel Bali 2022"]
[Site "Benidorm, Spain"]
[Date "2022.12.10"]
[Round "9.7"]
[White "Chia, Yu Zhe Ashton"]
[Black "Remolar Gallen, Jose"]
[Result "1/2-1/2"]
[ECO "B22"]
[WhiteElo "1970"]
[BlackElo "2305"]
[PlyCount "110"]
[EventDate "2022.12.03"]
[EventType "swiss"]
[EventRounds "9"]
[SourceTitle "Ajedrez en Madrid"]
[Source "lmi"]
[SourceDate "2022.12.03"]
[SourceVersion "1"]
[SourceVersionDate "2022.12.10"]
[SourceQuality "1"]
[TimeControl "90+30"]
[WhiteClock "0:00:57"]
[BlackClock "0:08:55"]

1. e4 {[%emt 0:00:00]} c5 {[%emt 0:00:00]} 2. c3 {[%emt 0:00:00]} Nf6 {[%emt 0:00:00]} 3. e5 {[%emt 0:00:00]} Nd5 {[%emt 0:00:00]} 4. d4 {[%emt 0:00:00]} cxd4 {[%emt 0:00:00]} 5. Nf3 {[%emt 0:00:00]} Nc6 {[%emt 0:00:00]} 6. cxd4 {[%emt 0:00:00]} d6 {[%emt 0:00:00]} 7. Bc4 {[%emt 0:00:00]} Nb6 {[%emt 0:00:00]} 8. Bb5 {[%emt 0:00:00]} dxe5 {[%emt 0:00:00]} 9. Nxe5 {[%emt 0:00:00]} Bd7 {[%emt 0:00:00]} 10. Nxd7 {[%emt 0:00:00]} Qxd7 {[%emt 0:00:00]} 11. Nc3 {[%emt 0:00:00]} e6 {[%emt 0:00:00]} 12. O-O {[%emt 0:00:00]} Be7 {[%emt 0:00:00]} 13. Qg4 {[%emt 0:00:00]} O-O {[%emt 0:00:00]} 14. Bxc6 {[%emt 0:00:00]} bxc6 {[%emt 0:00:00]} 15. Bh6 {[%emt 0:00:00]} Bf6 {[%emt 0:00:00]} 16. Rad1 {[%emt 0:00:00]} Kh8 {[%emt 0:00:00]} 17. Ne4 {[%emt 0:00:00]} Qd8 {[%emt 0:00:00]} 18. Bf4 {[%emt 0:00:00]} Be7 {[%emt 0:00:00]} 19. Qg3 {[%emt 0:00:00]} Nd5 {[%emt 0:00:00]} 20. Be5 {[%emt 0:00:00]} f6 {[%emt 0:04:18]} 21. Bd6 {[%emt 0:00:00]} f5 {[%emt 0:00:00]} 22. Be5 {[%emt 0:00:00]} Rf7 {[%emt 0:00:00]} 23. Nc5 {[%emt 0:00:00]} f4 {[%emt 0:00:00]} 24. Qg4 {[%emt 0:00:00]} Bxc5 {[%emt 0:00:00]} 25. dxc5 {[%emt 0:00:00]} f3 {[%emt 0:00:00]} 26. gxf3 {[%emt 0:00:00]} Qe7 {[%emt 0:00:00]} 27. Bd6 {[%emt 0:00:00]} Qf6 {[%emt 0:00:00]} 28. Rfe1 {[%emt 0:00:00]} Re8 {[%emt 0:00:00]} 29. b4 {[%emt 0:00:00]} Rb7 {[%emt 0:00:00]} 30. Be5 {[%emt 0:00:00]} Qg6 {[%emt 0:00:00]} 31. Qxg6 {[%emt 0:00:00]} hxg6 {[%emt 0:00:00]} 32. a3 {[%emt 0:00:00]} a5 {[%emt 0:00:00]} 33. bxa5 {[%emt 0:00:00]} Ra8 {[%emt 0:00:00]} 34. Bd6 {[%emt 0:00:00]} Rxa5 {[%emt 0:00:00]} 35. Rxe6 {[%emt 0:00:00]} Rxa3 {[%emt 0:00:00]} 36. Bg3 {[%emt 0:01:59]} Rc3 {[%emt 0:00:00]} 37. Rxc6 {[%emt 0:00:52]} Ne7 {[%emt 0:00:00]} 38. Rb6 {[%emt 0:02:34]} Ra7 {[%emt 0:00:00]} 39. Re1 {[%emt 0:08:19]} Rxc5 {[%emt 0:00:00]} 40. Rbe6 {[%emt 0:01:17]} Nf5 {[%emt 0:00:00]} 41. Rxg6 {[%emt 0:00:21]} Rf7 {[%emt 0:00:00]} 42. Rg5 {[%emt 0:05:17]} Kh7 {[%emt 0:00:00]} 43. Re6 {[%emt 0:00:34]} Rc3 {[%emt 0:00:59]} 44. Rh5+ {[%emt 0:00:47]} Nh6 {[%emt 0:00:30]} 45. Re3 {[%emt 0:00:32]} Rxf3 46. Re7 Kg6 47. Ra5 Rc6 48. Re4 Rf5 49. Ra8 Rcf6 50. Kg2 Kh7 51. f4 {[%emt 0:03:28]} Nf7 {[%emt 0:04:19]} 52. Re7 {[%emt 0:12:05]} Nd6 {[%emt 0:07:12]} 53. Rd8 {[%emt 0:00:00]} Ra5 {[%emt 0:01:53]} 54. Rdd7 {[%emt 0:00:00]} Nf5 {[%emt 0:00:30]} 55. Re2 {[%emt 0:00:00]} Ra3 {[%emt 0:00:24]} 1/2-1/2

[Event "Torneo Benidorm Gran Hotel Bali 2022"]
[Site "Benidorm, Spain"]
[Date "2022.12.10"]
[Round "9.8"]
[White "Shaik, Sumer Arsh"]
[Black "Tabuenca Mendataurigoitia, Danie"]
[Result "1/2-1/2"]
[ECO "A13"]
[WhiteElo "2290"]
[BlackElo "2171"]
[PlyCount "46"]
[EventDate "2022.12.03"]
[EventType "swiss"]
[EventRounds "9"]
[SourceTitle "Ajedrez en Madrid"]
[Source "lmi"]
[SourceDate "2022.12.03"]
[SourceVersion "1"]
[SourceVersionDate "2022.12.10"]
[SourceQuality "1"]
[TimeControl "90+30"]
[WhiteClock "0:06:57"]
[BlackClock "0:38:36"]

1. Nf3 {[%emt 0:00:00]} d5 {[%emt 0:00:00]} 2. c4 {[%emt 0:00:00]} e6 {[%emt 0:00:00]} 3. g3 {[%emt 0:00:00]} dxc4 {[%emt 0:00:00]} 4. Qa4+ {[%emt 0:00:00]} Nd7 {[%emt 0:00:00]} 5. Qxc4 {[%emt 0:00:00]} a6 {[%emt 0:00:00]} 6. Bg2 {[%emt 0:00:00]} b5 {[%emt 0:00:00]} 7. Qc2 {[%emt 0:00:00]} Bb7 {[%emt 0:00:00]} 8. O-O {[%emt 0:00:00]} Ngf6 {[%emt 0:00:00]} 9. d3 {[%emt 0:00:00]} c5 {[%emt 0:00:00]} 10. a4 {[%emt 0:00:00]} Be7 {[%emt 0:00:00]} 11. Nc3 {[%emt 0:00:41]} Qb6 {[%emt 0:00:00]} 12. axb5 {[%emt 0:00:00]} axb5 {[%emt 0:00:00]} 13. Rxa8+ {[%emt 0:00:00]} Bxa8 {[%emt 0:00:00]} 14. Bg5 {[%emt 0:00:00]} O-O {[%emt 0:00:00]} 15. Qb3 {[%emt 0:00:00]} h6 {[%emt 0:00:00]} 16. Bxf6 {[%emt 0:00:00]} Bxf6 {[%emt 0:00:00]} 17. Qxb5 {[%emt 0:00:00]} Qxb5 {[%emt 0:00:00]} 18. Nxb5 {[%emt 0:00:00]} Rb8 {[%emt 0:00:19]} 19. Nd6 {[%emt 0:00:00]} Rxb2 {[%emt 0:00:00]} 20. e3 {[%emt 0:00:51]} Nb6 {[%emt 0:00:00]} 21. Rc1 {[%emt 0:04:21]} Be7 {[%emt 0:00:00]} 22. Nc4 {[%emt 0:00:09]} Nxc4 {[%emt 0:00:00]} 23. dxc4 {[%emt 0:00:01]} Bxf3 {[%emt 0:00:00]} 1/2-1/2

[Event "Torneo Benidorm Gran Hotel Bali 2022"]
[Site "Benidorm, Spain"]
[Date "2022.12.10"]
[Round "9.9"]
[White "Rodriguez Lopez, Rafael"]
[Black "Salvador Buiza, Victor"]
[Result "1-0"]
[ECO "C95"]
[WhiteElo "2189"]
[BlackElo "1984"]
[PlyCount "117"]
[EventDate "2022.12.03"]
[EventType "swiss"]
[EventRounds "9"]
[SourceTitle "Ajedrez en Madrid"]
[Source "lmi"]
[SourceDate "2022.12.03"]
[SourceVersion "1"]
[SourceVersionDate "2022.12.10"]
[SourceQuality "1"]
[TimeControl "90+30"]
[WhiteClock "0:16:09"]
[BlackClock "0:03:49"]

1. e4 {[%emt 0:00:00]} e5 {[%emt 0:00:00]} 2. Nf3 {[%emt 0:00:00]} Nc6 {[%emt 0:00:00]} 3. Bb5 {[%emt 0:00:00]} a6 {[%emt 0:00:00]} 4. Ba4 {[%emt 0:00:00]} Nf6 {[%emt 0:00:00]} 5. O-O {[%emt 0:00:00]} Be7 {[%emt 0:00:00]} 6. Re1 {[%emt 0:00:00]} b5 {[%emt 0:00:00]} 7. Bb3 {[%emt 0:00:00]} d6 {[%emt 0:00:00]} 8. c3 {[%emt 0:00:00]} O-O {[%emt 0:00:00]} 9. h3 {[%emt 0:00:00]} Nb8 {[%emt 0:00:00]} 10. d4 {[%emt 0:00:00]} Nbd7 {[%emt 0:00:00]} 11. Nbd2 {[%emt 0:00:00]} Bb7 {[%emt 0:00:00]} 12. Bc2 {[%emt 0:00:00]} Re8 {[%emt 0:00:00]} 13. Nf1 {[%emt 0:00:00]} Bf8 {[%emt 0:00:00]} 14. Ng3 {[%emt 0:00:00]} g6 {[%emt 0:00:00]} 15. b3 {[%emt 0:00:00]} Bg7 {[%emt 0:00:00]} 16. d5 {[%emt 0:00:00]} Nb6 {[%emt 0:00:00]} 17. Be3 {[%emt 0:00:00]} Rc8 {[%emt 0:00:00]} 18. Nd2 {[%emt 0:00:00]} c6 {[%emt 0:00:00]} 19. c4 {[%emt 0:00:00]} cxd5 {[%emt 0:00:00]} 20. cxd5 {[%emt 0:00:00]} Nfd7 {[%emt 0:00:00]} 21. Rc1 {[%emt 0:00:00]} Nc5 {[%emt 0:00:00]} 22. Bb1 {[%emt 0:00:00]} Re7 {[%emt 0:00:00]} 23. Qe2 {[%emt 0:00:00]} Rec7 {[%emt 0:00:00]} 24. Nf3 {[%emt 0:00:00]} b4 {[%emt 0:00:00]} 25. Red1 {[%emt 0:00:00]} Qd7 {[%emt 0:00:00]} 26. Qd2 {[%emt 0:00:00]} a5 {[%emt 0:00:00]} 27. Ne1 {[%emt 0:00:00]} Ba6 {[%emt 0:00:00]} 28. Nd3 {[%emt 0:00:00]} Bxd3 {[%emt 0:00:00]} 29. Bxd3 {[%emt 0:00:00]} Qe7 {[%emt 0:00:00]} 30. Bb5 {[%emt 0:00:00]} Nbd7 {[%emt 0:00:00]} 31. Bc6 {[%emt 0:00:00]} Bf8 {[%emt 0:00:00]} 32. Qe2 {[%emt 0:00:00]} Qd8 {[%emt 0:01:47]} 33. Rc4 {[%emt 0:00:00]} Nb8 {[%emt 0:01:47]} 34. Bxc5 {[%emt 0:00:00]} dxc5 {[%emt 0:00:11]} 35. Bb5 {[%emt 0:00:00]} Qd6 {[%emt 0:01:45]} 36. Rc2 {[%emt 0:00:00]} Bh6 {[%emt 0:00:00]} 37. Ra1 {[%emt 0:00:00]} Rf8 {[%emt 0:02:42]} 38. a4 {[%emt 0:00:00]} f5 {[%emt 0:01:55]} 39. exf5 {[%emt 0:00:00]} gxf5 {[%emt 0:00:05]} 40. Re1 {[%emt 0:00:00]} Bg7 {[%emt 0:03:54]} 41. Qh5 {[%emt 0:00:00]} Rcf7 {[%emt 0:00:15]} 42. Rec1 {[%emt 0:00:00]} Bh6 {[%emt 0:00:38]} 43. Rd1 {[%emt 0:00:00]} e4 {[%emt 0:00:52]} 44. Rc4 {[%emt 0:01:15]} e3 {[%emt 0:00:49]} 45. Nh1 {[%emt 0:01:39]} exf2+ {[%emt 0:01:06]} 46. Nxf2 {[%emt 0:00:24]} Be3 {[%emt 0:00:45]} 47. Qf3 {[%emt 0:00:10]} f4 {[%emt 0:00:28]} 48. Kh1 {[%emt 0:00:15]} Bd4 {[%emt 0:01:07]} 49. Ne4 {[%emt 0:00:29]} Qe7 {[%emt 0:01:46]} 50. d6 {[%emt 0:00:24]} Qe5 {[%emt 0:00:19]} 51. Rc2 {[%emt 0:02:54]} Nd7 {[%emt 0:00:46]} 52. Bc4 {[%emt 0:00:20]} Nb6 {[%emt 0:00:37]} 53. Bxf7+ {[%emt 0:00:34]} Rxf7 {[%emt 0:00:00]} 54. Rdc1 {[%emt 0:00:14]} c4 {[%emt 0:00:42]} 55. bxc4 {[%emt 0:02:39]} b3 {[%emt 0:01:12]} 56. Re2 {[%emt 0:00:27]} b2 {[%emt 0:00:12]} 57. Rb1 {[%emt 0:00:20]} Nxc4 {[%emt 0:00:32]} 58. Qg4+ {[%emt 0:02:28]} Qg7 {[%emt 0:00:29]} 59. Qc8+ {[%emt 0:00:19]} 1-0